bitfinex-derivatives/quotes_BTCF0:USTF0_20250915
["timestamp","ask_amount","ask_price","bid_price","bid_amount"]
[1757899945981,0.05802584,115310.0,115300.0,1.88491783]
[1757899947496,0.05802584,115310.0,115300.0,0.6666]
[1757899947692,0.30802584,115310.0,115300.0,0.6666]
[1757899947892,0.38592842,115310.0,115300.0,1.15467783]
[1757899948199,0.38592842,115310.0,115300.0,0.88807783]
[1757899949689,0.38592842,115310.0,115300.0,0.88867783]
[1757899950091,0.33918687,115310.0,115300.0,0.88867783]
[1757899950889,0.33918687,115310.0,115300.0,0.88827783]
[1757899952196,0.33918687,115310.0,115300.0,0.80788]
[1757899952490,0.33918687,115310.0,115300.0,0.88827783]
[1757899953088,0.30802584,115310.0,115300.0,0.88827783]
[1757899956993,0.05802584,115310.0,115300.0,1.23827783]
[1757899957296,0.05802584,115310.0,115300.0,1.40851783]
[1757899957793,0.05802584,115310.0,115300.0,0.60039783]
[1757899958000,0.05802584,115310.0,115300.0,1.40859783]
[1757899958995,0.03527584,115310.0,115300.0,1.98859783]
[1757899959193,0.0131,115310.0,115300.0,1.98859783]
[1757899959498,0.0131,115310.0,115300.0,2.07528743]
[1757899959700,0.0131,115310.0,115300.0,2.15568526]
[1757899960198,0.0131,115310.0,115300.0,2.42228526]
[1757899960792,0.0131,115310.0,115300.0,2.33559566]
[1757899961101,0.0131,115310.0,115300.0,2.25519783]
[1757899961494,0.0131,115310.0,115300.0,2.25619783]
[1757899966103,0.0131,115310.0,115300.0,2.34288773]
[1757899966401,0.01335,115320.0,115300.0,2.44069048]
[1757899966605,0.01335,115320.0,115310.0,0.16079566]
[1757899966802,0.01335,115320.0,115310.0,0.99079566]
[1757899967904,0.01335,115320.0,115310.0,1.06106836]
[1757899968204,0.01335,115320.0,115310.0,1.14775076]
[1757899968508,0.03365449,115330.0,115310.0,1.14775076]
[1757899968699,0.03365449,115330.0,115320.0,0.96935566]
[1757899968901,0.03365449,115330.0,115320.0,1.84935566]
[1757899969806,0.03365449,115330.0,115320.0,1.93603056]
[1757899971002,0.03365449,115330.0,115320.0,1.04079566]
[1757899971307,0.03565449,115330.0,115320.0,1.84911566]
[1757899971507,0.03665449,115330.0,115320.0,1.84911566]
[1757899972007,0.03665449,115330.0,115320.0,1.04079566]
[1757899972201,0.01271,115320.0,115310.0,0.15067053]
[1757899972406,0.03567,115320.0,115310.0,0.62039783]
[1757899972610,0.03567,115320.0,115310.0,1.42851783]
[1757899972909,0.03567,115320.0,115310.0,1.34812]
[1757899973204,0.03567,115320.0,115310.0,1.07839783]
[1757899973998,0.28567,115320.0,115310.0,0.27039783]
[1757899974203,0.28567,115320.0,115310.0,0.88839783]
[1757899974806,0.28567,115320.0,115310.0,0.98839783]
[1757899975110,0.03567,115320.0,115310.0,1.50879566]
[1757899975308,0.03567,115320.0,115310.0,1.42839783]
[1757899975805,0.01271,115320.0,115310.0,1.42839783]
[1757899976212,0.01271,115320.0,115310.0,1.348]
[1757899976511,0.01271,115320.0,115310.0,2.25411473]
[1757899976806,0.03365449,115330.0,115310.0,2.25411473]
[1757899977107,0.03365449,115330.0,115320.0,0.16079566]
[1757899977305,0.03365449,115330.0,115320.0,0.70079566]
[1757899978205,0.05510449,115330.0,115320.0,0.70079566]
[1757899978516,0.05510449,115330.0,115320.0,1.51487566]
[1757899978712,0.05710449,115330.0,115320.0,1.51487566]
[1757899979205,0.05710449,115330.0,115320.0,0.70079566]
[1757899979513,0.05710449,115330.0,115320.0,1.51555566]
[1757899979811,0.05810449,115330.0,115320.0,0.70079566]
[1757899980010,0.05810449,115330.0,115320.0,1.51555566]
[1757899980210,0.05810449,115330.0,115320.0,0.62039783]
[1757899980609,0.05810449,115330.0,115320.0,1.43511783]
[1757899981614,0.05810449,115330.0,115320.0,0.62039783]
[1757899981814,0.05810449,115330.0,115320.0,1.51551936]
[1757899982209,0.05810449,115330.0,115320.0,0.54]
[1757899982516,0.03471,115320.0,115310.0,0.06863627]
[1757899982708,0.05690723,115320.0,115310.0,1.43511968]
[1757899982904,0.05690723,115320.0,115310.0,1.35472]
[1757899983110,0.05690723,115320.0,115310.0,1.43511968]
[1757899983509,0.05690723,115320.0,115310.0,0.70039968]
[1757899984012,0.05690723,115320.0,115310.0,1.43508]
[1757899984216,0.05690723,115320.0,115310.0,1.51547968]
[1757899984613,0.05690723,115320.0,115310.0,0.62]
[1757899984810,0.05690723,115320.0,115310.0,1.51575968]
[1757899985910,0.05690723,115320.0,115310.0,1.43536]
[1757899986206,0.38730691,115320.0,115310.0,0.62]
[1757899986514,0.03519,115310.0,115300.0,0.01740492]
[1757899986719,0.05738723,115310.0,115300.0,1.33504]
[1757899987019,0.30738723,115310.0,115300.0,0.81504]
[1757899987210,0.30738723,115310.0,115300.0,0.89543968]
[1757899987410,0.30738723,115310.0,115300.0,0.08039968]
[1757899987617,0.30738723,115310.0,115300.0,0.97587936]
[1757899988316,0.30738723,115310.0,115300.0,0.81608]
[1757899988514,0.30738723,115310.0,115300.0,0.97687936]
[1757899989806,0.38778691,115310.0,115300.0,0.81632]
[1757899990017,0.38778691,115310.0,115300.0,0.89671968]
[1757899990409,0.38778691,115310.0,115300.0,0.8164]
[1757899990610,0.38778691,115310.0,115300.0,0.89679968]
[1757899990822,0.30738723,115310.0,115300.0,0.97719936]
[1757899991614,0.30738723,115310.0,115300.0,0.8164]
[1757899992013,0.30738723,115310.0,115300.0,0.97719936]
[1757899992319,0.30738723,115310.0,115300.0,0.16179936]
[1757899992521,0.38778691,115310.0,115300.0,0.001]
[1757899992710,0.49934762,115310.0,115300.0,0.001]
[1757899992908,0.46568949,115310.0,115300.0,0.001]
[1757899993117,0.38528981,115310.0,115300.0,0.001]
[1757899993316,0.46568949,115310.0,115300.0,0.001]
[1757899993723,0.458323,115310.0,115300.0,0.001]
[1757899994215,0.38778691,115310.0,115300.0,0.001]
[1757899995118,0.38778691,115310.0,115300.0,0.08139968]
[1757899996520,0.38778691,115310.0,115300.0,0.001]
[1757899996719,0.38778691,115310.0,115300.0,0.08139968]
[1757899997025,0.38778691,115310.0,115300.0,0.001]
[1757899997325,0.30738723,115310.0,115300.0,0.001]
[1757899997524,0.38778691,115310.0,115300.0,0.001]
[1757899997725,0.38778691,115310.0,115300.0,0.08139968]
[1757899999325,0.45640237,115310.0,115300.0,0.08139968]
[1757899999926,0.45640237,115310.0,115300.0,0.001]
[1757900000126,0.45640237,115310.0,115300.0,0.08139968]
[1757900000928,0.45640237,115310.0,115300.0,0.001]
[1757900000929,0.37600269,115310.0,115300.0,0.001]
[1757900001225,0.45640237,115310.0,115300.0,0.08139968]
[1757900001425,0.37600269,115310.0,115300.0,0.001]
[1757900001624,0.45640237,115310.0,115300.0,0.08139968]
[1757900003325,0.45640237,115310.0,115300.0,0.001]
[1757900003526,0.45640237,115310.0,115300.0,0.08139968]
[1757900004928,0.37600269,115310.0,115300.0,0.08139968]
[1757900005329,0.45640237,115310.0,115300.0,0.08139968]
[1757900005821,0.45640237,115310.0,115300.0,0.001]
[1757900006022,0.45640237,115310.0,115300.0,0.08139968]
[1757900009530,0.45640237,115310.0,115300.0,0.001]
[1757900009831,0.45640237,115310.0,115300.0,0.08139968]
[1757900010332,0.37600269,115310.0,115300.0,0.08139968]
[1757900010534,0.45640237,115310.0,115300.0,0.08139968]
[1757900010730,0.45640237,115310.0,115300.0,0.001]
[1757900010924,0.30708919,115310.0,115280.0,0.08039968]
[1757900011131,0.03519,115280.0,115270.0,0.6980342]
[1757900011330,0.03519,115280.0,115270.0,1.23912442]
[1757900011526,0.03519,115280.0,115270.0,1.44468442]
[1757900011929,0.03519,115280.0,115270.0,0.63612449]
[1757900012129,0.03319,115280.0,115270.0,1.45304449]
[1757900012324,0.03319,115280.0,115270.0,1.53336417]
[1757900013225,0.03319,115280.0,115270.0,1.53636417]
[1757900013536,0.03319,115280.0,115270.0,1.54036417]
[1757900014238,0.03319,115280.0,115270.0,1.62076385]
[1757900014832,0.03319,115280.0,115270.0,1.95747765]
[1757900015033,0.01309,115280.0,115270.0,1.95747765]
[1757900015737,0.01309,115280.0,115270.0,1.87076385]
[1757900017932,0.01309,115280.0,115270.0,1.70996449]
[1757900018139,0.01309,115280.0,115270.0,1.87076385]
[1757900019142,0.01309,115280.0,115270.0,1.70996449]
[1757900019343,0.01309,115280.0,115270.0,1.62076385]
[1757900020248,0.0350145,115280.0,115270.0,1.62076385]
[1757900020544,0.0350145,115280.0,115270.0,1.60319943]
[1757900027651,0.0350145,115280.0,115270.0,1.44240007]
[1757900027851,0.0350145,115280.0,115270.0,1.60319943]
[1757900029248,0.0350145,115280.0,115270.0,1.68991323]
[1757900029552,0.03355654,115290.0,115270.0,2.31031291]
[1757900029753,0.05548888,115290.0,115280.0,0.24119904]
[1757900029951,0.05548888,115290.0,115280.0,0.82119904]
[1757900030154,0.05548888,115290.0,115280.0,1.10119904]
[1757900031044,0.05548888,115290.0,115280.0,1.35119904]
[1757900031350,0.03355654,115290.0,115280.0,1.35119904]
[1757900031556,0.03355654,115290.0,115280.0,1.43790534]
[1757900032450,0.03355654,115290.0,115280.0,1.43890534]
[1757900032746,0.03355654,115290.0,115280.0,1.44090534]
[1757900034250,0.03355654,115290.0,115280.0,1.70750534]
[1757900034752,0.03355654,115290.0,115280.0,1.62079904]
[1757900034945,0.03355654,115290.0,115280.0,2.10387936]
[1757900037651,0.03355654,115290.0,115280.0,2.02347968]
[1757900037860,0.03355654,115290.0,115280.0,2.10387936]
[1757900038658,0.03355654,115290.0,115280.0,2.10375936]
[1757900038849,0.28355654,115290.0,115280.0,1.82339936]
[1757900040058,0.28355654,115290.0,115280.0,1.55679936]
[1757900040855,0.38609622,115290.0,115280.0,0.583]
[1757900041054,0.40800701,115290.0,115280.0,0.81576]
[1757900041255,0.40800701,115290.0,115280.0,0.08339968]
[1757900041453,0.40800701,115290.0,115280.0,0.003]
[1757900041762,0.40808579,115290.0,115280.0,0.003]
[1757900041957,0.51973711,115290.0,115280.0,0.003]
[1757900042153,0.51973711,115290.0,115270.0,0.78084]
[1757900042154,0.56649641,115290.0,115250.0,1.74603846]
[1757900042457,0.01268,115230.0,115220.0,0.01761863]
[1757900042654,0.03482,115230.0,115220.0,1.80797642]
[1757900043060,0.01268,115230.0,115220.0,1.80797642]
[1757900043655,0.00868,115230.0,115220.0,1.88845488]
[1757900044253,0.00268,115230.0,115220.0,1.88845488]
[1757900044462,0.00268,115230.0,115220.0,1.81197642]
[1757900044659,0.00268,115230.0,115220.0,1.89245488]
[1757900045060,0.00268,115230.0,115220.0,1.89845488]
[1757900045456,0.01268,115240.0,115230.0,0.0867439]
[1757900045661,0.01268,115250.0,115230.0,1.14770082]
[1757900045864,0.01268,115250.0,115240.0,0.89271846]
[1757900046162,0.01268,115250.0,115240.0,1.78271846]
[1757900047561,0.01268,115250.0,115240.0,1.78371846]
[1757900048264,0.01268,115250.0,115240.0,1.78471846]
[1757900048752,0.01268,115250.0,115240.0,1.78371846]
[1757900048953,0.01668,115250.0,115240.0,1.78371846]
[1757900049661,0.01668,115250.0,115240.0,1.78271846]
[1757900049866,0.01868,115250.0,115240.0,1.78271846]
[1757900051461,0.01868,115250.0,115240.0,1.86945486]
[1757900051662,0.006,115250.0,115240.0,1.78271846]
[1757900051963,0.006,115250.0,115240.0,2.13605486]
[1757900053164,0.006,115250.0,115240.0,2.21653332]
[1757900053365,0.006,115250.0,115240.0,2.46653332]
[1757900055360,0.01268,115270.0,115250.0,0.0867222]
[1757900055566,0.01268,115270.0,115260.0,1.05879832]
[1757900055765,0.01268,115270.0,115260.0,1.90879832]
[1757900056766,0.01368,115270.0,115260.0,1.82207692]
[1757900057171,0.01368,115270.0,115260.0,1.01095692]
[1757900057373,0.01268,115270.0,115260.0,1.82175692]
[1757900057567,0.01468,115270.0,115260.0,1.82175692]
[1757900058573,0.01668,115270.0,115260.0,1.82175692]
[1757900059182,0.01668,115270.0,115260.0,1.90847832]
[1757900059480,0.01668,115270.0,115260.0,1.97764378]
[1757900060578,0.01668,115270.0,115260.0,2.24424378]
[1757900061071,0.004,115270.0,115260.0,2.24424378]
[1757900061973,0.004,115270.0,115260.0,1.97716378]
[1757900063173,0.004,115270.0,115260.0,2.30764224]
[1757900063373,0.004,115270.0,115260.0,2.22716378]
[1757900063879,0.004,115270.0,115260.0,1.41684378]
[1757900064381,0.004,115270.0,115260.0,2.22676378]
[1757900065179,0.004,115270.0,115260.0,1.41684378]
[1757900065579,0.004,115270.0,115260.0,2.22648378]
[1757900066380,0.01766,115270.0,115260.0,1.41684378]
[1757900066681,0.01766,115270.0,115260.0,2.22628378]
[1757900067989,0.004,115270.0,115260.0,2.22628378]
[1757900069388,0.004,115270.0,115260.0,2.49288378]
[1757900070886,0.004,115270.0,115260.0,1.68344378]
[1757900071289,0.004,115270.0,115260.0,2.49176378]
[1757900071589,0.004,115270.0,115260.0,2.49168378]
[1757900071889,0.01766,115270.0,115260.0,2.49168378]
[1757900073690,0.01766,115270.0,115260.0,1.68344378]
[1757900073890,0.01766,115270.0,115260.0,2.49152378]
[1757900074893,0.004,115270.0,115260.0,2.49152378]
[1757900077282,0.01711,115270.0,115260.0,2.49152378]
[1757900079494,0.01711,115270.0,115260.0,2.07984686]
[1757900079692,0.01711,115270.0,115260.0,2.24088378]
[1757900080094,0.01711,115270.0,115260.0,1.43344378]
[1757900080286,0.01711,115270.0,115260.0,2.24104378]
[1757900080486,0.01711,115270.0,115260.0,2.24096378]
[1757900080692,0.01711,115270.0,115260.0,1.43344378]
[1757900080992,0.01711,115270.0,115260.0,2.24088378]
[1757900083484,0.01711,115270.0,115260.0,1.81276686]
[1757900083788,0.01711,115270.0,115260.0,1.97372378]
[1757900084791,0.01711,115270.0,115260.0,1.16684378]
[1757900084992,0.01711,115270.0,115260.0,1.97388378]
[1757900085690,0.01711,115270.0,115260.0,1.88716238]
[1757900086191,0.01711,115270.0,115260.0,1.08012238]
[1757900086390,0.28877,115270.0,115260.0,0.91916546]
[1757900086596,0.28877,115270.0,115260.0,0.99964392]
[1757900086896,0.28877,115270.0,115260.0,1.80652392]
[1757900087301,0.28877,115270.0,115260.0,1.80660392]
[1757900087491,0.28877,115270.0,115260.0,1.80668392]
[1757900090198,0.28877,115270.0,115260.0,0.99964392]
[1757900090399,0.28877,115270.0,115260.0,1.80632392]
[1757900091299,0.28877,115270.0,115260.0,1.72584546]
[1757900091501,0.28877,115270.0,115260.0,0.99964392]
[1757900091695,0.28877,115270.0,115260.0,1.80588392]
[1757900092902,0.28877,115270.0,115260.0,1.88636238]
[1757900096003,0.28877,115270.0,115260.0,1.97308378]
[1757900097304,0.28877,115270.0,115260.0,1.88636238]
[1757900097802,0.28877,115270.0,115260.0,1.08012238]
[1757900098003,0.28877,115270.0,115260.0,1.88564238]
[1757900099602,0.26711,115270.0,115260.0,1.97236378]
[1757900100104,0.26711,115270.0,115260.0,1.88564238]
[1757900100504,0.26711,115270.0,115260.0,1.97236378]
[1757900101303,0.26711,115270.0,115260.0,1.88552238]
[1757900101706,0.26711,115270.0,115260.0,1.08012238]
[1757900102001,0.26711,115270.0,115260.0,1.88547446]
[1757900102199,0.26711,115270.0,115260.0,1.08007446]
[1757900102393,0.26711,115270.0,115260.0,1.88547446]
[1757900102803,0.26711,115270.0,115260.0,1.08007446]
[1757900102998,0.26711,115270.0,115260.0,1.88547446]
[1757900103194,0.26711,115270.0,115260.0,1.08007446]
[1757900103398,0.28982,115270.0,115260.0,1.88547446]
[1757900104506,0.03982,115270.0,115260.0,1.08007446]
[1757900104705,0.03982,115270.0,115260.0,1.88547446]
[1757900106400,0.3702745,115270.0,115260.0,0.85]
[1757900106703,0.01262,115260.0,115250.0,1.7463745]
[1757900106903,0.13692896,115260.0,115250.0,0.8858545]
[1757900107806,0.05647446,115260.0,115250.0,0.8858545]
[1757900108011,0.13692896,115260.0,115250.0,0.8858545]
[1757900108203,0.03458,115250.0,115240.0,0.09827141]
[1757900108405,0.1150345,115250.0,115240.0,1.35151141]
[1757900108702,0.1150345,115250.0,115240.0,1.46371141]
[1757900110510,0.03658,115250.0,115240.0,1.46371141]
[1757900110806,0.03958,115250.0,115240.0,1.46371141]
[1757900112109,0.03958,115250.0,115240.0,1.54416591]
[1757900112407,0.03958,115250.0,115240.0,1.46371141]
[1757900112707,0.03958,115250.0,115240.0,1.54416591]
[1757900114203,0.03958,115250.0,115240.0,1.38325691]
[1757900114406,0.03958,115250.0,115240.0,1.54416591]
[1757900114911,0.03958,115250.0,115240.0,0.73872591]
[1757900115106,0.03958,115250.0,115240.0,1.46379141]
[1757900116107,0.1200345,115250.0,115240.0,0.57781691]
[1757900116306,0.1200345,115250.0,115240.0,0.09827141]
[1757900116502,0.14187596,115250.0,115240.0,0.89671141]
[1757900117211,0.14187596,115250.0,115240.0,0.90379141]
[1757900118315,0.14187596,115250.0,115240.0,0.82333691]
[1757900120219,0.14187596,115250.0,115240.0,0.90379141]
[1757900120407,0.14187596,115250.0,115240.0,0.82333691]
[1757900120809,0.06142146,115250.0,115240.0,0.90379141]
[1757900121004,0.14187596,115250.0,115240.0,0.90379141]
[1757900121510,0.06142146,115250.0,115240.0,0.90379141]
[1757900121715,0.14187596,115250.0,115240.0,0.90379141]
[1757900122115,0.14187596,115250.0,115240.0,0.82333691]
[1757900122416,0.14187596,115250.0,115240.0,0.90379141]
[1757900124217,0.14187596,115250.0,115240.0,0.82333691]
[1757900124519,0.14187596,115250.0,115240.0,0.90379141]
[1757900124823,0.14187596,115250.0,115240.0,0.82333691]
[1757900125023,0.14187596,115250.0,115240.0,0.90379141]
[1757900126023,0.14187596,115250.0,115240.0,0.82333691]
[1757900126225,0.14187596,115250.0,115240.0,0.90379141]
[1757900127126,0.06142146,115250.0,115240.0,0.90379141]
[1757900127330,0.14187596,115250.0,115240.0,0.90379141]
[1757900128222,0.06142146,115250.0,115240.0,0.90379141]
[1757900128419,0.06142146,115250.0,115240.0,0.98424591]
[1757900128724,0.06142146,115250.0,115240.0,1.52424591]
[1757900129826,0.06142146,115250.0,115240.0,1.36333691]
[1757900130027,0.06142146,115250.0,115240.0,1.53424591]
[1757900134125,0.03958,115250.0,115240.0,1.53424591]
[1757900134323,0.06141167,115250.0,115240.0,1.53424591]
[1757900134726,0.03945167,115250.0,115240.0,1.94143691]
[1757900135027,0.01762,115250.0,115240.0,2.23143691]
[1757900135218,0.01762,115250.0,115240.0,2.14470041]
[1757900135929,0.01762,115250.0,115240.0,2.06424591]
[1757900136528,0.01762,115250.0,115240.0,2.06420591]
[1757900138729,0.01762,115250.0,115240.0,1.09781691]
[1757900138928,0.01762,115250.0,115240.0,1.25872591]
[1757900139126,0.01762,115250.0,115240.0,2.06416591]
[1757900139329,0.01762,115250.0,115240.0,1.81416591]
[1757900142432,0.01762,115250.0,115240.0,1.00872591]
[1757900142635,0.01762,115250.0,115240.0,1.81408591]
[1757900147431,0.01762,115250.0,115240.0,1.7157745]
[1757900147735,0.3705545,115250.0,115240.0,0.54]
[1757900147939,0.39239959,115250.0,115240.0,1.34528]
[1757900148130,0.39239959,115250.0,115230.0,0.0804545]
[1757900148332,0.01321,115240.0,115230.0,1.7257345]
[1757900150835,0.01421,115240.0,115230.0,1.7257345]
[1757900151038,0.01621,115240.0,115230.0,1.7257345]
[1757900151438,0.01521,115240.0,115230.0,1.7257345]
[1757900151636,0.01821,115240.0,115230.0,1.7257345]
[1757900154540,0.0986645,115240.0,115230.0,1.7257345]
[1757900154741,0.0986645,115240.0,115230.0,1.64528]
[1757900154942,0.0986645,115240.0,115230.0,1.7257345]
[1757900155143,0.1211445,115240.0,115230.0,0.9204545]
[1757900155444,0.04069,115240.0,115230.0,1.7256545]
[1757900155742,0.1211445,115240.0,115230.0,1.7256545]
[1757900156444,0.04069,115240.0,115230.0,1.7256545]
[1757900158340,0.01821,115240.0,115230.0,1.7256545]
[1757900160444,0.01821,115240.0,115230.0,1.806109]
[1757900160844,0.01821,115240.0,115230.0,1.6452]
[1757900161045,0.01821,115240.0,115230.0,1.806109]
[1757900161748,0.01821,115240.0,115230.0,1.72570304]
[1757900166941,0.0408,115240.0,115230.0,1.64504]
[1757900167148,0.0408,115240.0,115230.0,1.72554304]
[1757900167448,0.0408,115240.0,115230.0,0.92050304]
[1757900167652,0.0408,115240.0,115230.0,1.64504]
[1757900167848,0.0408,115240.0,115230.0,1.72554304]
[1757900168451,0.0408,115240.0,115230.0,0.92050304]
[1757900168639,0.0408,115240.0,115230.0,1.72550304]
[1757900171147,0.06263515,115240.0,115230.0,1.645]
[1757900171457,0.06263515,115240.0,115230.0,1.72550304]
[1757900172251,0.06263515,115240.0,115230.0,1.645]
[1757900172446,0.06263515,115240.0,115230.0,1.72550304]
[1757900173748,0.06264434,115240.0,115230.0,1.72550304]
[1757900183763,0.01821,115240.0,115230.0,1.89275018]
[1757900183959,0.005,115240.0,115230.0,2.14275018]
[1757900185065,0.01807,115240.0,115230.0,2.14275018]
[1757900186660,0.01607,115240.0,115230.0,2.14275018]
[1757900186866,0.01707,115240.0,115230.0,2.14275018]
[1757900187166,0.01607,115240.0,115230.0,2.14275018]
[1757900187959,0.003,115240.0,115230.0,1.89275018]
[1757900188165,0.003,115240.0,115230.0,1.97062147]
[1757900188363,0.003,115240.0,115230.0,2.23722147]
[1757900189962,0.003,115240.0,115230.0,1.43222147]
[1757900190269,0.01607,115240.0,115230.0,2.15891018]
[1757900192069,0.01607,115240.0,115230.0,1.9979041]
[1757900192270,0.01607,115240.0,115230.0,2.15891018]
[1757900196970,0.003,115240.0,115230.0,2.15891018]
[1757900201071,0.003,115240.0,115230.0,1.35435018]
[1757900201272,0.003,115240.0,115230.0,2.15859018]
[1757900201466,0.003,115240.0,115230.0,1.35435018]
[1757900201666,0.01698,115240.0,115230.0,2.15855018]
[1757900201865,0.003,115240.0,115230.0,2.15855018]
[1757900202870,0.003,115240.0,115230.0,2.23642147]
[1757900203070,0.003,115240.0,115230.0,2.15855018]
[1757900203269,0.003,115240.0,115230.0,2.23642147]
[1757900203874,0.003,115240.0,115230.0,2.48642147]
[1757900208774,0.01311,115270.0,115260.0,0.0867215]
[1757900209069,0.01311,115270.0,115260.0,1.7107215]
[1757900209269,0.01311,115270.0,115260.0,1.88898848]
[1757900210677,0.01611,115270.0,115260.0,1.88898848]
[1757900211178,0.01411,115270.0,115260.0,1.88898848]
[1757900211977,0.01511,115270.0,115260.0,1.88898848]
[1757900213480,0.01511,115270.0,115260.0,1.95852162]
[1757900213675,0.01511,115270.0,115260.0,0.98729708]
[1757900213879,0.03829,115270.0,115260.0,0.90679404]
[1757900214078,0.03829,115270.0,115260.0,1.79113708]
[1757900214583,0.28829,115270.0,115260.0,1.79109708]
[1757900214782,0.28829,115270.0,115260.0,1.54109708]
[1757900215683,0.28829,115270.0,115260.0,1.54105708]
[1757900215875,0.28829,115270.0,115260.0,1.78105708]
[1757900216187,0.28829,115270.0,115260.0,0.97729708]
[1757900216378,0.28829,115270.0,115260.0,1.78105708]
[1757900217984,0.28829,115270.0,115260.0,0.97729708]
[1757900218177,0.28829,115270.0,115260.0,1.78097708]
[1757900220087,0.28829,115270.0,115260.0,0.97729708]
[1757900220288,0.28829,115270.0,115260.0,1.78097708]
[1757900220788,0.28829,115270.0,115260.0,0.89679404]
[1757900220991,0.36879304,115270.0,115260.0,0.0172609]
[1757900221190,0.39071244,115270.0,115260.0,0.8208609]
[1757900221586,0.3102094,115270.0,115260.0,0.8208609]
[1757900223795,0.36877362,115270.0,115260.0,0.8208609]
[1757900223994,0.36877362,115270.0,115260.0,0.90134452]
[1757900224296,0.36877362,115270.0,115260.0,0.09774452]
[1757900224597,0.3907065,115270.0,115260.0,0.0172609]
[1757900224895,0.3907065,115270.0,115260.0,0.90130452]
[1757900226392,0.3907065,115270.0,115260.0,0.8207809]
[1757900226588,0.3907065,115270.0,115260.0,0.90126452]
[1757900227193,0.3907065,115270.0,115260.0,0.8207809]
[1757900227696,0.3907065,115270.0,115260.0,0.90126452]
[1757900229602,0.3907065,115270.0,115260.0,0.09774452]
[1757900229802,0.3907065,115270.0,115260.0,0.90122452]
[1757900230401,0.3907065,115270.0,115260.0,0.8207409]
[1757900230597,0.3907065,115270.0,115260.0,0.8206609]
[1757900231302,0.31022288,115270.0,115260.0,0.8206609]
[1757900231502,0.3907065,115270.0,115260.0,0.8206609]
[1757900232604,0.3907065,115270.0,115260.0,0.90114452]
[1757900232805,0.3907065,115270.0,115260.0,0.8206609]
[1757900233002,0.3907065,115270.0,115260.0,0.90114452]
[1757900235905,0.31022288,115270.0,115260.0,0.90114452]
[1757900236203,0.3907065,115270.0,115260.0,0.90114452]
[1757900236405,0.31022288,115270.0,115260.0,0.90114452]
[1757900236606,0.3907065,115270.0,115260.0,0.90114452]
[1757900237607,0.3907065,115270.0,115260.0,0.8206609]
[1757900237907,0.3907065,115270.0,115260.0,0.90114452]
[1757900239008,0.3907065,115270.0,115260.0,0.8206609]
[1757900239404,0.3907065,115270.0,115260.0,0.90114452]
[1757900239602,0.03561,115250.0,115240.0,0.01769424]
[1757900239801,0.11609362,115250.0,115240.0,0.35817786]
[1757900240007,0.11609362,115250.0,115240.0,1.16137786]
[1757900240307,0.11609362,115250.0,115240.0,0.35817786]
[1757900240607,0.11609362,115250.0,115240.0,1.16137786]
[1757900241005,0.11609362,115250.0,115240.0,1.16337786]
[1757900241205,0.11609362,115250.0,115240.0,0.90337786]
[1757900241406,0.1380301,115250.0,115240.0,0.82289424]
[1757900241608,0.1380301,115250.0,115240.0,0.90337786]
[1757900242009,0.1400301,115250.0,115240.0,0.90137786]
[1757900242510,0.1400301,115250.0,115240.0,0.90237786]
[1757900243310,0.1420301,115250.0,115240.0,0.90137786]
[1757900246113,0.12009362,115250.0,115240.0,0.90137786]
[1757900246415,0.14202799,115250.0,115240.0,0.90137786]
[1757900247109,0.06154437,115250.0,115240.0,0.98186148]
[1757900247310,0.03961,115250.0,115240.0,1.23186148]
[1757900247502,0.0168,115250.0,115240.0,1.83859808]
[1757900247913,0.0168,115250.0,115240.0,1.9190817]
[1757900248313,0.0168,115250.0,115240.0,1.83859808]
[1757900248510,0.0168,115250.0,115240.0,2.2190817]
[1757900248908,0.0168,115250.0,115240.0,2.13859808]
[1757900249316,0.0168,115250.0,115240.0,2.05186148]
[1757900249911,0.0168,115250.0,115240.0,2.1323451]
[1757900250212,0.0168,115250.0,115240.0,2.1321451]
[1757900250614,0.0168,115250.0,115240.0,2.3987451]
[1757900250814,0.0168,115250.0,115240.0,1.51526148]
[1757900251014,0.0168,115250.0,115240.0,2.31826148]
[1757900251212,0.0148,115250.0,115240.0,2.31826148]
[1757900251415,0.0158,115250.0,115240.0,1.51526148]
[1757900251715,0.0138,115250.0,115240.0,2.31826148]
[1757900252014,0.0148,115250.0,115240.0,2.31826148]
[1757900252921,0.0148,115250.0,115240.0,1.51526148]
[1757900253117,0.0148,115250.0,115240.0,2.31822148]
[1757900255406,0.0148,115250.0,115240.0,2.31814148]
[1757900259020,0.0148,115250.0,115240.0,1.51526148]
[1757900259215,0.0148,115250.0,115240.0,2.31802148]
[1757900259417,0.0148,115250.0,115240.0,2.06802148]
[1757900262523,0.0148,115250.0,115240.0,2.15475808]
[1757900263022,0.0148,115250.0,115240.0,2.06802148]
[1757900264725,0.0148,115250.0,115240.0,2.1485051]
[1757900267924,0.0148,115250.0,115240.0,1.26526148]
[1757900268123,0.0148,115250.0,115240.0,2.06782148]
[1757900268424,0.0148,115250.0,115240.0,1.26526148]
[1757900268724,0.0148,115250.0,115240.0,2.06778148]
[1757900271823,0.0148,115250.0,115240.0,1.26526148]
[1757900272027,0.0148,115250.0,115240.0,2.06770148]
[1757900282227,0.0148,115250.0,115240.0,1.90673424]
[1757900282425,0.0148,115250.0,115240.0,2.06770148]
[1757900283230,0.0148,115250.0,115240.0,1.90673424]
[1757900283535,0.0148,115250.0,115240.0,2.06770148]
[1757900285534,0.0148,115250.0,115240.0,2.06738148]
[1757900285721,0.0148,115250.0,115240.0,1.9869039]
[1757900287234,0.0148,115250.0,115240.0,1.10429424]
[1757900287530,0.36814966,115250.0,115240.0,1.58864]
[1757900287736,0.0148,115250.0,115240.0,1.68674865]
[1757900288031,0.0148,115250.0,115240.0,2.06348525]
[1757900289432,0.002,115250.0,115240.0,2.06348525]
[1757900289733,0.002,115250.0,115240.0,2.31348525]
[1757900290925,0.002,115250.0,115240.0,2.39135654]
[1757900292430,0.002,115250.0,115240.0,2.22674865]
[1757900292630,0.002,115250.0,115240.0,2.31348525]
[1757900292830,0.01528,115250.0,115240.0,2.22662865]
[1757900293033,0.01528,115250.0,115240.0,2.14613899]
[1757900293332,0.01528,115250.0,115240.0,1.97658865]
[1757900296038,0.01528,115250.0,115240.0,1.17470865]
[1757900296241,0.28848,115250.0,115240.0,0.80421899]
[1757900296431,0.28848,115250.0,115240.0,1.60601899]
[1757900296735,0.28848,115250.0,115240.0,1.68650865]
[1757900298136,0.28848,115250.0,115240.0,1.41990865]
[1757900315544,0.28848,115250.0,115240.0,1.33941899]